Cogmind - Beta 13 *** ADVENTURER MODE // 2024.03.10 @ 10:39:23 Player: Occam Result: Self-destructed Performance ------------- Evolutions (3) 1500 Regions Visited (8) 1600 Robots Destroyed (129) 645 Value Destroyed (3217) 3217 Prototype IDs (8) 160 Alien Tech Used (0) 0 Bonus (177) 177 TOTAL SCORE: 7299 Bonus ------- Follower Combat Kills 177 Cogmind --------- Core Integrity 577/700 Matter 273/300 Energy 100/100 System Corruption 1% Temperature Cool (0) Movement Rolling (190) Ox6 Location -7/Factory Parts ------- > --- POWER (1) -------- (None) > --- PROPULSION (4) --- Armored Treads (fused) Armored Treads Compact Wheel > --- UTILITY (6) ------ Huge Storage Unit Structural Scanner Improved Light Armor Plating Reactive Plating > --- WEAPON (2) ------- Minigun Makeshift Spear > --- INVENTORY (25) --- Reinforced Ion Engine Makeshift Power Source Compact Wheel Armored Wheel Armored Wheel Cooling System Cooling System High-capacity Matter Pod (200) Improved Signal Interpreter Seismic Detector Improved Light Armor Plating Hacking Suite Hacking Suite Corruption Screen System Restoration Module Improved Medium Laser Advanced Beam Rifle Light EM Pulse Cannon Light EM Pulse Cannon Ion Cannon Missile Launcher Improved Datajack Heavy Flail Deploy-a-Sentry Peak State ------------ > --- POWER ------------ Cooled Ion Engine > --- PROPULSION ------- Armored Treads Armored Treads Armored Treads Compact Wheel > --- UTILITY ---------- Huge Storage Unit Structural Scanner Advanced Weapon Cycler Improved Light Armor Plating Reactive Plating Hacking Suite > --- WEAPON ----------- Advanced Beam Rifle Minigun > --- INVENTORY -------- Reinforced Ion Engine Makeshift Power Source Compact Wheel Armored Wheel Armored Wheel Cooling System Cooling System High-capacity Matter Pod Improved Signal Interpreter Seismic Detector Improved Light Armor Plating Hacking Suite Hacking Suite Corruption Screen System Restoration Module Improved Medium Laser Light EM Pulse Cannon Light EM Pulse Cannon Ion Cannon Minigun Missile Launcher Improved Datajack Heavy Flail Makeshift Spear Deploy-a-Sentry [Rating: 46] Favorites ----------- Power Cooled Ion Engine Engine Cooled Ion Engine Propulsion Improved Treads Treads Improved Treads Leg Advanced Myomer Leg Wheel Compact Wheel Hover Unit Makeshift Hover Unit Utility Huge Storage Unit Device Structural Scanner Storage Huge Storage Unit Processor Signal Interpreter Hackware Hacking Suite Protection Medium Armor Plating Weapon Improved Medium Laser Energy Gun Improved Medium Laser Energy Cannon Ion Cannon Ballistic Gun Heavy Assault Rifle Launcher Grenade Launcher Piercing Weapon Makeshift Spear Build | -11 -10 -10 -9 -9 -9 -8 -8 -7 ------- Run | Yrd Mat Min Mat Min Exi Min Mat Fac Slots Evolved 6 | . . . 2 . . . 2 2 Power . | . . . . . . . . . Propulsion 2 | . . . 1 . . . 1 . Utility 4 | . . . 1 . . . 1 2 Weapon . | . . . . . . . . . Parts Attached 123 | 1 13 11 32 2 27 1 32 4 Power 8 | . 1 1 5 . 1 . . . Engine 8 | . 1 1 5 . 1 . . . Core . | . . . . . . . . . Reactor . | . . . . . . . . . Propulsion 38 | . 5 5 10 . 10 . 8 . Treads 21 | . 4 1 7 . 4 . 5 . Leg 3 | . . . . . 3 . . . Wheel 13 | . 1 4 3 . 2 . 3 . Hover 1 | . . . . . 1 . . . Flight . | . . . . . . . . . Utility 24 | 1 2 1 8 2 3 1 4 2 Device 12 | 1 1 1 4 1 1 1 1 1 Storage 2 | . 1 . 1 . . . . . Processor 1 | . . . . 1 . . . . Hackware 1 | . . . . . . . 1 . Protection 8 | . . . 3 . 2 . 2 1 Artifact . | . . . . . . . . . Weapon 53 | . 5 4 9 . 13 . 20 2 Energy Gun 20 | . 1 2 2 . 6 . 9 . Energy Cannon 4 | . . . . . . . 4 . Ballistic Gun 17 | . 4 . 6 . 2 . 4 1 Ballistic Cannon . | . . . . . . . . . Launcher 7 | . . 2 1 . 4 . . . Special Weapon . | . . . . . . . . . Impact Weapon . | . . . . . . . . . Slashing Weapon . | . . . . . . . . . Piercing Weapon 5 | . . . . . 1 . 3 1 Special Melee Weapon . | . . . . . . . . . Unidentified Prototypes 8 | . . . 3 . 1 . 4 . Parts Lost 23 | . 1 3 . . 14 . . 5 Power 2 | . . . . . 1 . . 1 Propulsion 7 | . . . . . 6 . . 1 Utility 6 | . . 1 . . 3 . . 2 Weapon 8 | . 1 2 . . 4 . . 1 Highest Loss Streak 6 | . 1 2 . . 6 . . 5 To Critical Strikes 5 | . . . . . 5 . . . Average Slot Usage (%) 98 | . 99 99 99 100 94 100 99 99 Engine 10 | . 14 14 10 11 10 11 9 7 Treads 19 | . 15 14 22 22 13 22 22 23 Leg 1 | . 2 . . . 8 . . . Wheel 10 | . 9 14 11 11 7 11 13 7 Device 10 | . 14 13 11 2 5 22 10 14 Storage 11 | . 14 14 11 11 11 11 9 7 Processor 2 | . . . . 8 5 . . . Hackware 1 | . . . . . . . 8 7 Protection 7 | . . . 10 11 7 . 7 15 Energy Gun 9 | . 6 13 5 11 13 22 8 6 Ballistic Gun 12 | . 21 14 16 11 8 . 8 7 Naked Turns . | . . . . . . . . . Heaviest Build 108 | 11 31 30 102 102 101 97 101 108 Greatest Support 53 | 20 40 20 16 16 53 16 28 16 Greatest Overweight (x) 8 | . 3 2 6 6 8 6 6 6 Average Overweight (x) 4 | . 1 1 4 6 4 6 4 6 Largest Inventory Capacity 25 | 8 15 15 25 25 25 25 25 25 Average Capacity 21 | 8 12 15 18 25 25 25 25 25 Most Carried 25 | 8 15 15 22 25 25 23 25 25 Average Carried 19 | 6 11 14 16 23 19 23 24 23 Final Capacity 25 | 8 15 15 25 25 25 25 25 25 Final Carried 25 | 8 14 15 22 25 24 23 25 24 Class Distribution -------------------- 59% | Mutant 22% | Hacker-Mutant 18% | Scavenger-Mutant Dominant Class ---------------- Mutant | -10/Materials Mutant | -10/Mines Mutant | -9/Materials Mutant | -9/Mines Mutant | -9/Exiles Mutant | -8/Mines Hacker-Mutant | -8/Materials Hacker-Mutant | -7/Factory Resources | -11 -10 -10 -9 -9 -9 -8 -8 -7 ----------- Run | Yrd Mat Min Mat Min Exi Min Mat Fac Matter Collected 3658 | 220 614 170 780 59 982 66 655 112 Remotely . | . . . . . . . . . Salvage Created 5325 | 71 776 257 1546 269 446 94 1478 388 Parts 326 | 7 45 13 102 18 31 3 81 26 Haulers Intercepted 9 | . 1 . 5 . . . 3 . Recyclers Shooed 6 | . 2 . 2 . . . 2 . Parts Field Recycled . | . . . . . . . . . Retrieved Matter . | . . . . . . . . . Parts Self-Destructed . | . . . . . . . . . Prevented . | . . . . . . . . . Kills | -11 -10 -10 -9 -9 -9 -8 -8 -7 ------- Run | Yrd Mat Min Mat Min Exi Min Mat Fac Combat Hostiles Destroyed 101 | . 16 18 24 4 8 4 19 8 Melee 3 | . . . . . . . 3 . Guns 81 | . 16 8 24 4 1 4 16 8 AOE 17 | . . 10 . . 7 . . . Classes Destroyed 17 | 2 6 2 1 . 2 1 1 2 Worker 4 | . 2 . 1 . . . 1 . Builder 2 | . 1 . 1 . . . . . Tunneler 5 | 1 . 2 . 1 . . . 1 Hauler 9 | . 1 . 5 . . . 3 . Recycler 10 | 1 2 . 2 1 . . 4 . Operator 2 | . . . . . . . 2 . Turret 1 | . . . . . 1 . . . Watcher 10 | . 3 . 3 . . . 3 1 Swarmer 18 | . 6 . 3 . . 3 3 3 Grunt 41 | . 10 3 12 4 . . 10 2 Brawler 1 | . . . . . . . . 1 Sentry 15 | . . . 9 . . . 5 1 Demolisher 1 | . . 1 . . . . . . Hunter 2 | . . . . . . 1 1 . Programmer 1 | . . . . . . . . 1 Zionite 4 | . . . . . 4 . . . Assembled 21 | . . 14 . . 7 . . . Best Kill Streak 11 | 2 7 11 6 3 7 3 4 5 Combat Bots Only 11 | . 6 11 5 3 7 3 3 4 Max Kills in Single Turn 4 | 1 2 4 2 2 3 1 1 1 Gunslinging 1 | . 1 . . . . . . . Exploded 4 | . . 4 . . 3 . . . Melee 1 | . . . . . . . 1 . Uniques/NPCs Destroyed 4 | . . . . . 4 . . . 8R-AWN (-9/Exiles) EX-BIN (-9/Exiles) EX-DEC (-9/Exiles) EX-HEX (-9/Exiles) Combat | -11 -10 -10 -9 -9 -9 -8 -8 -7 -------- Run | Yrd Mat Min Mat Min Exi Min Mat Fac Hostile Shots Fired 639 | . 100 65 98 18 146 20 90 102 Missed 162 | . 28 21 31 6 30 5 24 17 Damage Taken 5871 | . 594 662 734 126 1818 108 624 1205 Core 785 | . 103 134 105 14 244 13 49 123 Absorbed by Shields . | . . . . . . . . . Ignored by Resistances 1757 | . 185 192 212 40 509 32 179 408 Regen/Repaired (Parts) 456 | . . . 230 . . . 226 . Core Remaining (%) 50 | 100 . 5 . . . 6 91 . Volleys Fired 443 | 5 52 44 91 13 100 9 98 31 Largest 2 | 2 2 2 2 2 2 2 2 2 Hottest 112 | 40 85 85 79 79 112 112 86 86 Shots Fired 823 | 10 104 74 181 26 175 18 173 62 Gun 781 | 10 104 70 180 26 150 18 161 62 Cannon 12 | . . . . . . . 12 . Launcher 30 | . . 4 1 . 25 . . . Special . | . . . . . . . . . Kinetic 450 | 10 86 30 156 13 48 . 76 31 Thermal 343 | . 18 40 24 13 102 18 97 31 Explosive 30 | . . 4 1 . 25 . . . Electromagnetic . | . . . . . . . . . Robot Hit Streak 41 | 4 23 8 25 24 41 7 16 21 Robot Miss Streak 4 | 1 2 3 2 2 2 1 4 2 Penetration Max . | . . . . . . . . . Secondary Targets 16 | . 3 . 5 1 2 . 3 2 Max Gunslinging Chain 1 | . 1 . 1 1 1 . 1 1 Shots Hit Robots 620 | 6 82 50 141 18 130 15 118 60 Core Hits 269 | 3 36 38 53 7 54 5 50 23 Critical Kills 4 | 1 . . 2 . . . . 1 Critical Parts Destroyed 3 | . 1 . 1 . . . . 1 Critical Strikes 29 | 1 1 3 7 . 6 . 7 4 Burn 20 | . . 3 4 . 6 . 6 1 Destroy 7 | 1 1 . 3 . . . . 2 Impale 2 | . . . . . . . 1 1 Melee Attacks 24 | . . . . . . . 12 12 Impact . | . . . . . . . . . Slashing . | . . . . . . . . . Piercing 24 | . . . . . . . 12 12 Sneak Attacks . | . . . . . . . . . Combat Hostiles . | . . . . . . . . . Follow-up Attacks . | . . . . . . . . . Damage Inflicted 11041 | 46 1114 1083 2106 304 2752 260 2127 1249 Guns 9370 | 46 1114 590 2106 304 1973 260 2002 975 Cannons . | . . . . . . . . . Explosions 1272 | . . 493 . . 779 . . . Melee 399 | . . . . . . . 125 274 Ramming . | . . . . . . . . . Kinetic 4998 | 46 895 171 1785 149 555 . 954 443 Thermal 4372 | . 219 419 321 155 1418 260 1048 532 Explosive 1272 | . . 493 . . 779 . . . Electromagnetic . | . . . . . . . . . Impact . | . . . . . . . . . Slashing . | . . . . . . . . . Piercing 399 | . . . . . . . 125 274 Highest Corruption 7 | . . . . . 4 4 7 1 Average Corruption 3 | . . . . . 3 4 3 1 Corruption Purged . | . . . . . . . . . Corruption Blocked . | . . . . . . . . . Effects 52 | . . . . . 13 11 28 . Message Errors 15 | . . . . . 4 7 4 . Matter Fused 9 | . . . . . 3 2 4 . Heat Flow Errors 8 | . . . . . . . 8 . Energy Discharges 6 | . . . . . 2 1 3 . Parts Fused 1 | . . . . . . . 1 . Data Loss (minor) 7 | . . . . . 3 1 3 . Data Loss (major) 3 | . . . . . 1 . 2 . Misfires 1 | . . . . . . . 1 . Weapon Failures 2 | . . . . . . . 2 . Overload Shots . | . . . . . . . . . Overflow Damage 62 | . . 37 . . 25 . . . Projectiles . | . . . . . . . . . Explosions 62 | . . 37 . . 25 . . . Melee . | . . . . . . . . . Knockbacks . | . . . . . . . . . Impact . | . . . . . . . . . Kinetic . | . . . . . . . . . Secondary . | . . . . . . . . . Self-Inflicted Damage 112 | . . 17 . . 95 . . . Shots 5 | . . 1 . . 4 . . . Rammed . | . . . . . . . . . Targets Rammed . | . . . . . . . . . Kicked . | . . . . . . . . . Crushed . | . . . . . . . . . Highest Temperature 373 | . 264 223 72 150 85 . 177 373 Average Temperature 62 | . 90 48 17 48 47 . 41 141 Received Heat Transfer 1605 | . 261 122 390 93 40 . 261 438 Effects 1 | . . . . . . . . 1 Interference 1 | . . . . . . . . 1 Siege Activations . | . . . . . . . . . Robots Corrupted . | . . . . . . . . . Combat Hostiles . | . . . . . . . . . Parts Fried . | . . . . . . . . . Impact Corruptions . | . . . . . . . . . Robots Melted 1 | . . . . . 1 . . . Combat Hostiles . | . . . . . . . . . Parts Melted 18 | . 3 1 2 . 8 2 1 1 Heat Transferred 9539 | . 518 1258 1110 333 2160 555 2664 941 Parts Sabotaged . | . . . . . . . . . Parts Stolen . | . . . . . . . . . Parts Stripped . | . . . . . . . . . Power Chain Reactions . | . . . . . . . . . Alert | -11 -10 -10 -9 -9 -9 -8 -8 -7 ------- Run | Yrd Mat Min Mat Min Exi Min Mat Fac Peak Influence 374 | 10 254 103 374 60 . 100 323 190 Initial 72 | . 5 . . 21 . . 33 72 Average 94 | 7 82 28 151 18 . 45 111 94 Maximum Alert Level 1 | . 1 . 1 . . . 1 . Low Security (%) 84 | 100 86 100 62 100 . 100 90 100 Level 1 15 | . 13 . 37 . . . 9 . Level 2 . | . . . . . . . . . Level 3 . | . . . . . . . . . Level 4 . | . . . . . . . . . Level 5 . | . . . . . . . . . High Security . | . . . . . . . . . Max Security . | . . . . . . . . . Squads Dispatched 21 | . 4 1 7 1 . . 5 3 Investigation 12 | . 4 1 5 1 . . 1 . Extermination 1 | . . . . . . . . 1 Reinforcement 6 | . . . 2 . . . 4 . Assault 1 | . . . . . . . . 1 Garrison 1 | . . . . . . . . 1 Intercept . | . . . . . . . . . Searches Triggered . | . . . . . . . . . Construction Impeded . | . . . . . . . . . Haulers Reinforced . | . . . . . . . . . Active Scanning Responses . | . . . . . . . . . Cargo Convoy Interrupts . | . . . . . . . . . Stealth | -11 -10 -10 -9 -9 -9 -8 -8 -7 --------- Run | Yrd Mat Min Mat Min Exi Min Mat Fac Distress Signals 9 | . 1 . 5 . . . 3 . Communications Jammed . | . . . . . . . . . Distress Signals . | . . . . . . . . . Times Spotted 193 | . 21 25 37 3 52 4 37 14 Peak Tracking Total 17 | . 7 17 5 3 9 3 6 5 Tactical Retreats 22 | . 2 . 5 . 13 . 2 . Traps | -11 -10 -10 -9 -9 -9 -8 -8 -7 ------- Run | Yrd Mat Min Mat Min Exi Min Mat Fac Traps Triggered 6 | . 4 . 2 . . . . . Indirectly . | . . . . . . . . . Trap Hack Attempts . | . . . . . . . . . Triggered . | . . . . . . . . . Disarmed . | . . . . . . . . . Reprogrammed . | . . . . . . . . . Reused . | . . . . . . . . . Traps Extracted . | . . . . . . . . . Installed . | . . . . . . . . . Triggered . | . . . . . . . . . Machines | -11 -10 -10 -9 -9 -9 -8 -8 -7 ---------- Run | Yrd Mat Min Mat Min Exi Min Mat Fac Machines Disabled 9 | . . . 1 . 5 . 3 . Max in Single Turn 2 | . . . 1 . 2 . 1 . Garrison Access 1 | . . . . . . . . 1 Machines Repaired . | . . . . . . . . . Machines Dismantled . | . . . . . . . . . Machines Sabotaged . | . . . . . . . . . Overloaded Fab Kills . | . . . . . . . . . Hacking | -11 -10 -10 -9 -9 -9 -8 -8 -7 --------- Run | Yrd Mat Min Mat Min Exi Min Mat Fac Machines Accessed 32 | . 10 1 11 1 1 . 6 2 Terminals 21 | . 8 1 7 1 . . 4 . Fabricators 1 | . . . . . . . . 1 Repair Stations 4 | . . . 2 . . . 2 . Recycling Units 4 | . 2 . 1 . . . . 1 Scanalyzers 1 | . . . 1 . . . . . Garrison Access . | . . . . . . . . . Total Hacks 98 | . 27 3 30 1 1 . 31 5 Successful 66 | . 16 . 24 . 1 . 20 5 Failed 32 | . 11 3 6 1 . . 11 . Catastrophic 6 | . . 2 3 . . . 1 . Database Lockouts . | . . . . . . . . . Manual 58 | . 18 . 12 3 3 . 19 3 Terminals 65 | . 23 3 15 1 . . 23 . Fabricators 1 | . . . . . . . . 1 Repair Stations 14 | . . . 6 . . . 8 . Recycling Units 10 | . 4 . 2 . . . . 4 Scanalyzers 7 | . . . 7 . . . . . Garrison Access . | . . . . . . . . . Terminal Hacks 24 | . 9 . 6 . 1 . 8 . Record 1 | . . . . . 1 . . . Robot Analysis 7 | . 5 . 1 . . . 1 . Branch Access Points 2 | . . . 1 . . . 1 . Terminal Index 1 | . . . 1 . . . . . Alert Level 5 | . 2 . 2 . . . 1 . Unreport Threat 1 | . 1 . . . . . . . Locate Traps 1 | . . . . . . . 1 . Recall Investigation 1 | . . . . . . . 1 . Recall Reinforcements 3 | . . . . . . . 3 . Hauler Manifests 2 | . 1 . 1 . . . . . Fabricator Hacks 1 | . . . . . . . . 1 Network Status 1 | . . . . . . . . 1 Repair Station Hacks 14 | . . . 6 . . . 8 . Scan Component 7 | . . . 3 . . . 4 . Repair 7 | . . . 3 . . . 4 . Recycling Unit Hacks 4 | . 2 . 1 . . . . 1 Report Inventory 4 | . 2 . 1 . . . . 1 Scanalyzer 7 | . . . 7 . . . . . Insert Component 3 | . . . 3 . . . . . Analyze 4 | . . . 4 . . . . . Garrison Access Hacks . | . . . . . . . . . Unauthorized Hacks 16 | . 5 . 4 . . . 4 3 Terminals 10 | . 3 . 3 . . . 4 . Botnet 9 | . 3 . 3 . . . 3 . Operators 1 | . . . . . . . 1 . Fabricators . | . . . . . . . . . Repair Stations . | . . . . . . . . . Recycling Units 6 | . 2 . 1 . . . . 3 Reject 1 | . . . . . . . . 1 Recyclers 1 | . . . . . . . . 1 Mask 1 | . . . . . . . . 1 Tunnel 3 | . 2 . 1 . . . . . Scanalyzers . | . . . . . . . . . Garrison Access . | . . . . . . . . . Data Cores Recovered . | . . . . . . . . . Used . | . . . . . . . . . Hacking Detections 27 | . 10 1 10 1 . . 5 . Full Trace Events 6 | . . 1 3 1 . . 1 . Feedback Events . | . . . . . . . . . Feedback Blocked . | . . . . . . . . . Robot Schematics Acquired . | . . . . . . . . . Robots Built . | . . . . . . . . . Authchips . | . . . . . . . . . Time . | . . . . . . . . . Total Robot Build Rating . | . . . . . . . . . Part Schematics Acquired 3 | . . . 3 . . . . . Parts Built . | . . . . . . . . . Authchips . | . . . . . . . . . Time . | . . . . . . . . . Total Part Build Rating . | . . . . . . . . . Parts Repaired 7 | . . . 3 . . . 4 . Time 255 | . . . 115 . . . 140 . Parts Recycled . | . . . . . . . . . Recycled Matter . | . . . . . . . . . Retrieved Matter . | . . . . . . . . . Retrieved Components . | . . . . . . . . . Parts Scanalyzed 3 | . . . 3 . . . . . Part Schematics Acquired 3 | . . . 3 . . . . . Parts Damaged . | . . . . . . . . . Bothacking | -11 -10 -10 -9 -9 -9 -8 -8 -7 ------------ Run | Yrd Mat Min Mat Min Exi Min Mat Fac Used RIF Installer . | . . . . . . . . . Robots Hacked . | . . . . . . . . . Non-combat . | . . . . . . . . . Combat . | . . . . . . . . . Robot Hacks Applied . | . . . . . . . . . Relay Couplers Released 2 | . . . . . . . . 2 Machine Destruction 2 | . . . . . . . . 2 Fabnet Peak Effective % . | . . . . . . . . . Robots Rewired . | . . . . . . . . . Allies Hacked . | . . . . . . . . . Hacks Repelled . | . . . . . . . . . Allies | -11 -10 -10 -9 -9 -9 -8 -8 -7 -------- Run | Yrd Mat Min Mat Min Exi Min Mat Fac Total Allies 3 | . . 3 . . . . . . Largest Group 3 | . . 3 3 . . . . . Highest-Rated Group 40 | . . 40 40 . . . . . Highest-Rated Ally 16 | . . 16 16 . . . . . Total Orders . | . . . . . . . . . Ally Attacks 45 | . . 11 34 . . . . . Total Damage 455 | . . 138 317 . . . . . Kills 7 | . . 1 6 . . . . . Allies Corrupted . | . . . . . . . . . Allies Melted . | . . . . . . . . . Intel | -11 -10 -10 -9 -9 -9 -8 -8 -7 ------- Run | Yrd Mat Min Mat Min Exi Min Mat Fac Robot Analysis Total 7 | . 5 . 1 . . . 1 . Derelict Logs Recovered 3 | . . 2 . 1 . . . . Drone Launches . | . . . . . . . . . Drone Recoveries . | . . . . . . . . . Exploration | -11 -10 -10 -9 -9 -9 -8 -8 -7 ------------- Run | Yrd Mat Min Mat Min Exi Min Mat Fac Turns Passed 11034 | 46 1223 875 2639 1204 2163 378 1893 613 Spaces Moved 5695 | 25 828 672 1407 607 883 183 821 269 Core . | . . . . . . . . . Treads 122 | . 120 2 . . . . . . Legs 360 | 25 81 . . . 254 . . . Wheels 5213 | . 627 670 1407 607 629 183 821 269 Hover . | . . . . . . . . . Flight . | . . . . . . . . . Fastest Speed 110 | 120 110 110 110 190 175 190 140 190 Average Speed 159 | 120 122 110 153 190 200 190 166 190 Slowest Speed 330 | 120 160 240 190 190 330 190 190 190 Overloaded Moves . | . . . . . . . . . Propulsion Burnouts . | . . . . . . . . . Robots Hopped . | . . . . . . . . . Cave-ins Triggered . | . . . . . . . . . Exploration Rate (%) 64 | 2 98 98 98 95 84 41 53 9 Regions Visited 8 Branch Regions 4 Pre-discovered Areas 5 | . 2 . 1 1 1 . . . Known Exits Taken 4 | . . . 1 1 1 1 . . Unknown Exits Taken 4 | 1 1 1 . . . . 1 . Scrap Searched 3 | . . 1 . 2 . . . . Spaces Dug 28 | . . . 6 . 11 . 11 . Terrain Destroyed 58 | . . 14 6 . 27 . 11 . Melee 5 | . . . . . . . 5 . Projectile 6 | . . . . . . . 6 . AOE 47 | . . 14 6 . 27 . . . Terrain Rammed . | . . . . . . . . . Walls Destroyed . | . . . . . . . . . Machines Disabled . | . . . . . . . . . Actions | -11 -10 -10 -9 -9 -9 -8 -8 -7 --------- Run | Yrd Mat Min Mat Min Exi Min Mat Fac Total 6870 | 32 942 739 1723 632 1103 196 1182 321 Wait 395 | . 24 . 135 6 55 4 168 3 Move 5687 | 24 827 671 1406 606 882 182 820 269 Hop . | . . . . . . . . . Pick Up 88 | 2 14 5 23 4 19 . 19 2 Fast Attach 32 | 1 2 2 8 . 6 . 13 . Attach 32 | . 4 2 5 . 15 1 2 3 Detach 15 | . 1 . 3 . 8 . 3 . Swap 59 | . 7 7 19 2 6 . 17 1 Drop 95 | . 11 8 33 1 12 . 30 . Fire 443 | 5 52 44 91 13 100 9 98 31 Melee 24 | . . . . . . . 12 12 Ram . | . . . . . . . . . Kick . | . . . . . . . . . Crush . | . . . . . . . . . Escape Stasis . | . . . . . . . . . Rewire . | . . . . . . . . . Trap . | . . . . . . . . . Miscellaneous . | . . . . . . . . . Route ------- -11/Scrapyard -10/Materials (discovered 4 exits: *Mat x3 / *Min) -10/Mines (discovered 2 exits: *Mat x2) -9/Materials (discovered 5 exits: *Mat x3 / *Min x2) -9/Mines (discovered 3 exits: *Mat x2 / *Exi) -9/Exiles -8/Mines -8/Materials (discovered 2 exits: *Fac x2) -7/Factory (discovered 1 exit: *Sto) History --------- Turn | Location | Event 1 | -11/Scrapyard | Discovered new exit (range 3) 47 | -11/Scrapyard | Entered Materials 274 | -10/Materials | Discovered new exit (range 8) 301 | -10/Materials | Build established: Mutant 437 | -10/Materials | Discovered new exit (range 16) 803 | -10/Materials | Discovered new exit (range 13) 1030 | -10/Materials | Build established: Scavenger-Mutant 1085 | -10/Materials | Discovered new exit (range 15) 1270 | -10/Materials | Entered Mines 1366 | -10/Mines | Received a Rocket Launcher from a helpful Derelict 1376 | -10/Mines | Discovered new exit (range 6) 1406 | -10/Mines | Assembled infested the area 1411 | -10/Mines | Assisted by a Guerilla fighting off Assembled 1422 | -10/Mines | Core integrity fell below 50% 1465 | -10/Mines | Destroyed 11 combat bots 1624 | -10/Mines | Core integrity fell below 20% 1697 | -10/Mines | Discovered new exit (range 14) 1750 | -10/Mines | Learned Materials garrison access intel 1881 | -10/Mines | Assisted by bots powering up and referring to "LRC-V3" 2018 | -10/Mines | Build established: Mutant 2145 | -10/Mines | Entered Materials 2145 | -9/Materials | Accompanied by 3 allies 2145 | -9/Materials | Evolved 2 slots: Propulsion x1, Utility x1 2306 | -9/Materials | Identified exit to Mines 2415 | -9/Materials | Discovered new exit (range 7) 2685 | -9/Materials | Build established: Scavenger-Mutant 3148 | -9/Materials | Repaired Med. Armor Plating 3315 | -9/Materials | Discovered new exit (range 15) 3775 | -9/Materials | Discovered new exit (range 8) 3812 | -9/Materials | Build established: Mutant 3964 | -9/Materials | Repaired Med. Armor Plating 4683 | -9/Materials | Repaired Cld. Ion Engine 4784 | -9/Materials | Entered Mines 4798 | -9/Mines | Deemed a non-threat by the Exiles lab entrance 4798 | -9/Mines | Discovered new exit (range 5) 5006 | -9/Mines | Discovered new exit (range 8) 5040 | -9/Mines | Identified exit to Materials 5107 | -9/Mines | Discovered exit to Materials (range 9) 5246 | -9/Mines | Learned Materials terminal intel 5778 | -9/Mines | Learned location of Storage (-7) 5986 | -9/Mines | Identified exit to Exiles 5988 | -9/Mines | Entered Exiles 6036 | -9/Exiles | Met 8R-AWN 6068 | -9/Exiles | Met EX-HEX 6140 | -9/Exiles | Met EX-DEC 6167 | -9/Exiles | Learned location of Zion (-6) 6298 | -9/Exiles | Discovered new exit (range 11) 6315 | -9/Exiles | Identified exit to Mines 6951 | -9/Exiles | Attacked by the Exiles 6998 | -9/Exiles | Core integrity fell below 50% 7018 | -9/Exiles | Destroyed 7 combat bots 7102 | -9/Exiles | Lost 6 parts (3n2u1w) 7190 | -9/Exiles | Destroyed 8R-AWN 7202 | -9/Exiles | Lost 3 parts (1n2w) 7467 | -9/Exiles | Destroyed EX-BIN 7481 | -9/Exiles | Core integrity fell below 20% 7497 | -9/Exiles | Destroyed EX-DEC 7520 | -9/Exiles | Destroyed EX-HEX 7540 | -9/Exiles | Lost 4 parts (1p2n1u) 7590 | -9/Exiles | Found Deploy-a-Sentry 8151 | -9/Exiles | Left Exiles lab with Deploy-a-Sentry 8151 | -9/Exiles | Entered Mines 8487 | -8/Mines | Discovered exit to Materials (range 5) 8529 | -8/Mines | Entered Materials 8529 | -8/Materials | Evolved 2 slots: Propulsion x1, Utility x1 8530 | -8/Materials | Loaded intel: 12 terminal locations 8531 | -8/Materials | Loaded intel: 1 garrison access location 8910 | -8/Materials | Build established: Hacker-Mutant 9103 | -8/Materials | Repaired Lgt. EM Pulse Cannon 9326 | -8/Materials | Repaired Minigun 9360 | -8/Materials | Repaired Arm. Wheel 9399 | -8/Materials | Repaired Imp. Light Armor Plating 9776 | -8/Materials | Discovered new exit (range 13) 10379 | -8/Materials | Discovered new exit (range 3) 10422 | -8/Materials | Entered Factory 10422 | -7/Factory | Evolved 2 slots: Utility x2 10423 | -7/Factory | Identified exit to Storage 10877 | -7/Factory | Garrison activated, responded to threat 11035 | -7/Factory | Self-destructed Last Messages --------------- 10975_ B-48 Gladiator suffers critical hit (Destroy). 10975_ B-48 Gladiator destroyed. 10976_ C-30 ARC bursts open, deploying its payload. 10976_ G-50 Soldier unfolds itself. 10976_ B-48 Gladiator unfolds itself. 10976_ G-47 Trooper unfolds itself. 10976_ I-36 Angel unfolds itself. 10977_ Acquired 12 matter. 10995_ Knocked back. 10999_ Critical hit (Burn: +37). 11001_ Overheating: System interference. 11001_ Adv. Weapon Cycler temporarily disabled. 11001_ Minigun destroyed. 11013_ Critical hit (Burn: +37). 11020_ Adv. Weapon Cycler destroyed. 11020_ System corrupted by crushing effect (+1). 11028_ B-48 Gladiator suffers critical hit (Impale). 11033_ Cld. Ion Engine destroyed. 11033_ Arm. Treads destroyed. 11034_ Hacking Suite destroyed. Map ----- +----------------------------------------------------+ | ???????????????????? ###"""" ###### | | ???????????????????? # ! "#### | | ???????????????????? # " " """ # | | ??????????????????"" # "#### """ # | | ??????????????????##+# #### """ ## | | ??????????????????## # ### ## | | ??????????????????## # ### ## | | ??????????????????## " ###^ | | ??????????????????## " ! ##### | | ??????????????????## " "F"" | | ??????????????????## " *[ "##### """" | | ??????????????????## " "########### | | ???????????????? ### # ] "########### | | ???????????????? ### #"""""" ""############# | | ???????????????? # | | ???????????????? # [ | | ???????????????? + =%= | | ???????????????? # = * | | ???????????????? + ! % | | ???????????????? # #####+### %r #####+ | | ???????????????? # ## ! # [ # | | ???????????????? # ## # #"""" | | ???????????????? # ## """ # #"""" | | ????????????????## ## """ + #"""" | | ????????????????## ## """ # % #"""" | | ????????????????## ##@ "" # #"""" | | ???????########### ## b""i ## T#### #"""" | | ???????########### =##gg g ######## # | | ??????? !%## """ ######## ###### | | ??????? =##!""" ######## ###### | | ??????? [%+=""" + ##???? | | ??????? " ##%!"" ####??## ##???? | | ??????? "%" ##[ "" ####??## ##???? | | ???????#### ######+## ##????###### ##???? | | ???????#### ? ## #########????###### ##???? | | ????????? # ??????????? #########?????????? ???? | | ????????? + ?????????????????????????????????????? | | ?????????????????????????????????????????????????? | | ?????????????????????????????????????????????????? | | ?????????????????????????????????????????????????? | | ?????????????????????????????????????????????????? | | ?????????????????????????????????????????????????? | | ?????????????????????????????????????????????????? | | ?????????????????????????????????????????????????? | | ?????????????????????????????????????????????????? | | ?????????????????????????????????????????????????? | | ?????????????????????????????????????????????????? | | ?????????????????????????????????????????????????? | | ?????????????????????????????????????????????????? | | ?????????????????????????????????????????????????? | +----------------------------------------------------+ Best States ------------- Heat Dissipation 53 Energy Generation 14 Energy Capacity 280 Matter Stores 300 Matter Capacity 300 Sight Range 16 Terrain Scan Density 10 Armor Coverage 300 Resistance: KI 40 Resistance: TH 20 Resistance: EX 20 Resistance: EM 20 Resistance: I 20 Resistance: S 20 Resistance: P 20 Weapon Cycling 25 Evasion (%) 55 Recoil Reduction 2 Offensive Hacking 20 Item Schematics ----------------- Com. Wheel | -9/Materials | Scanalyzed Hrd. Light Armor Plating | -9/Materials | Scanalyzed Hvy. Assault Rifle | -9/Materials | Scanalyzed Robot Schematics ------------------ None Fabricated ------------ Nothing Alien Tech Used ----------------- None Achievements -------------- None Challenges ------------ None Game ------ Seed LargeDirtyFragment Manual? 0 Play Time 01:41:18 Cumulative 177.8 hours Start 2024.03.01 @ 18:31:44 End 2024.03.10 @ 10:39:23 Sessions 9 Manual Loads 0 Difficulty Adventurer Special Mode None Game No. 135 Rogue 0 Adventurer 135 Explorer 0 Win Type - Total 2 Types 2/0/0/0/0/0/0/0/0 Lore% 57 Gallery% 63 Achievement% 54 Wizard Run 0 Options --------- Layout 0 ASCII 0 Keyboard 0 Movement Mouse Keybinds 0 Fullscreen 1 Font 20/SmallcapsGlow Map View 66x50 Zoom Use 0% Tactical HUD 1 Map Filters NONE Filters NONE Steam 1 RUN: abb052c2-9856-4a43-b9f6-364c9f7d5309